Cogmind - Beta 14 @@@ ROGUE MODE // 2024.09.06 @ 16:54:17 Player: celerysam Result: Destroyed by S-10 Pest with Light Assault Rifle Performance ------------- Evolutions (1) 500 Regions Visited (2) 400 Robots Destroyed (47) 235 Value Destroyed (1480) 1480 Prototype IDs (3) 60 Alien Tech Used (0) 0 Bonus (11) 11 TOTAL SCORE: 2686 Bonus ------- High Alert Combat Kills 11 Cogmind --------- Core Integrity 0/400 Matter 300/300 Energy 10/100 System Corruption 0% Temperature Cool (0) Movement Walking (120) Location -9/Materials Parts ------- > --- POWER (1) -------- (None) > --- PROPULSION (2) --- Aluminum Leg > --- UTILITY (2) ------ Structural Scanner Shield Generator > --- WEAPON (4) ------- Katana > --- INVENTORY (5) ---- Ion Engine Ion Engine Improved Flight Unit Peak State ------------ > --- POWER ------------ Improved Ion Engine > --- PROPULSION ------- Light Treads Improved Treads > --- UTILITY ---------- Improved Heat Sink Small Storage Unit > --- WEAPON ----------- Improved Medium Laser Advanced Beam Rifle Flak Cannon Katana > --- INVENTORY -------- Ion Engine Aluminum Leg Improved Flight Unit Improved Heat Sink Structural Scanner Sensor Array ECM Suite Shield Generator [Rating: 23] Favorites ----------- Power Improved Ion Engine Engine Improved Ion Engine Propulsion Light Treads Treads Light Treads Leg Aluminum Leg Wheel Wheel Flight Unit Improved Flight Unit Utility Small Storage Unit Device Improved Heat Sink Storage Small Storage Unit Protection Light Armor Plating Weapon Light Cannon Energy Gun Advanced Beam Rifle Ballistic Gun Assault Rifle Ballistic Cannon Light Cannon Slashing Weapon Katana Build | -11 -10 -9 ------- Run | Yrd Mat Mat Slots Evolved 2 | . . 2 Power . | . . . Propulsion . | . . . Utility . | . . . Weapon 2 | . . 2 Parts Attached 41 | 6 10 25 Power 6 | 2 . 4 Engine 6 | 2 . 4 Core . | . . . Reactor . | . . . Propulsion 12 | 3 3 6 Treads 7 | 1 2 4 Leg 1 | . . 1 Wheel 3 | 2 1 . Hover . | . . . Flight 1 | . . 1 Utility 7 | 1 2 4 Device 5 | . 2 3 Storage 1 | 1 . . Processor . | . . . Hackware . | . . . Protection 1 | . . 1 Artifact . | . . . Weapon 16 | . 5 11 Energy Gun 5 | . . 5 Energy Cannon . | . . . Ballistic Gun 3 | . 2 1 Ballistic Cannon 4 | . 3 1 Launcher . | . . . Special Weapon . | . . . Impact Weapon . | . . . Slashing Weapon 4 | . . 4 Piercing Weapon . | . . . Special Melee Weapon . | . . . Unidentified Prototypes 3 | . . 3 Parts Lost 13 | . 2 11 Power 1 | . . 1 Propulsion 4 | . 2 2 Utility 2 | . . 2 Weapon 6 | . . 6 Highest Loss Streak 6 | . 2 6 To Critical Strikes 1 | . . 1 Average Slot Usage (%) 93 | . 98 91 Engine 11 | . 14 10 Treads 17 | . 13 19 Wheel 4 | . 13 . Device 10 | . 13 9 Storage 11 | . 14 10 Protection 1 | . . 2 Energy Gun 7 | . . 11 Ballistic Gun 7 | . 9 7 Ballistic Cannon 16 | . 17 15 Slashing Weapon 3 | . . 4 Peak Build Rating 23 | 4 8 23 Average Rating 12 | 2 7 16 On Entrance 4 | . 4 8 Naked Turns . | . . . Heaviest Build 28 | 10 17 28 Greatest Support 43 | 26 40 43 Greatest Overweight (x) 7 | . 1 7 Average Overweight (x) . | . . . Largest Inventory Capacity 8 | 8 8 8 Average Capacity 7 | 6 8 7 Most Carried 8 | 7 8 8 Average Carried 7 | 5 7 7 Final Capacity 8 | 8 8 5 Final Carried 8 | 7 8 3 Class Distribution -------------------- 50% | Mutant 35% | Gunner 13% | Tank Dominant Class ---------------- Mutant | -10/Materials Gunner | -9/Materials Resources | -11 -10 -9 ----------- Run | Yrd Mat Mat Matter Collected 1288 | 209 352 727 Remotely . | . . . Salvage Created 1520 | . 357 1163 Parts 91 | . 23 68 Haulers Intercepted . | . . . Recyclers Shooed . | . . . Parts Field Recycled . | . . . Retrieved Matter . | . . . Parts Self-Destructed . | . . . Prevented . | . . . Kills | -11 -10 -9 ------- Run | Yrd Mat Mat Combat Hostiles Destroyed 41 | . 11 30 Melee 1 | . . 1 Guns 23 | . 2 21 Cannons 17 | . 9 8 Classes Destroyed 8 | . 3 5 Worker 2 | . . 2 Recycler 1 | . 1 . Operator 1 | . . 1 Watcher 2 | . . 2 Swarmer 6 | . 2 4 Grunt 26 | . 9 17 Duelist 3 | . . 3 Sentry 6 | . . 6 Best Kill Streak 8 | . 6 8 Combat Bots Only 6 | . 6 6 Max Kills in Single Turn 2 | . 1 2 Gunslinging 1 | . . 1 Exploded . | . . . Melee 1 | . . 1 Uniques/NPCs Destroyed . | . . . Combat | -11 -10 -9 -------- Run | Yrd Mat Mat Hostile Shots Fired 246 | . 49 197 Missed 59 | . 11 48 Damage Taken 2341 | . 431 1910 Core 443 | . 42 401 Absorbed by Shields 43 | . . 43 Core Remaining (%) 91 | 100 83 . Volleys Fired 96 | . 30 66 Largest 4 | . 2 4 Hottest 161 | . 70 161 Shots Fired 266 | . 60 206 Gun 146 | . 21 125 Cannon 120 | . 39 81 Launcher . | . . . Special . | . . . Kinetic 183 | . 60 123 Thermal 83 | . . 83 Explosive . | . . . Electromagnetic . | . . . Robot Hit Streak 10 | . 6 10 Robot Miss Streak 9 | . 3 9 Penetration Max . | . . . Secondary Targets 4 | . . 4 Max Gunslinging Chain 1 | . . 1 Shots Hit Robots 139 | . 33 106 Core Hits 79 | . 17 62 Critical Kills . | . . . Critical Parts Destroyed . | . . . Critical Strikes 6 | . . 6 Burn 4 | . . 4 Blast 1 | . . 1 Sever 1 | . . 1 Melee Attacks 11 | . . 11 Impact . | . . . Slashing 11 | . . 11 Piercing . | . . . Sneak Attacks . | . . . Combat Hostiles . | . . . Follow-up Attacks . | . . . Damage Inflicted 2509 | . 547 1962 Guns 1356 | . 158 1198 Cannons 998 | . 389 609 Explosions . | . . . Melee 155 | . . 155 Ramming . | . . . Kinetic 1383 | . 547 836 Thermal 971 | . . 971 Explosive . | . . . Electromagnetic . | . . . Impact . | . . . Slashing 155 | . . 155 Piercing . | . . . Highest Corruption . | . . . Average Corruption . | . . . Corruption Purged . | . . . Corruption Blocked . | . . . Overload Shots . | . . . Overflow Damage 15 | . . 15 Projectiles . | . . . Explosions . | . . . Melee 15 | . . 15 Knockbacks 15 | . 6 9 Impact . | . . . Kinetic 15 | . 6 9 Secondary . | . . . Self-Inflicted Damage . | . . . Shots . | . . . Rammed . | . . . Targets Rammed . | . . . Kicked . | . . . Crushed . | . . . Highest Temperature 286 | . 87 286 Average Temperature 66 | . 24 74 Received Heat Transfer 744 | . 192 552 Siege Activations . | . . . Robots Corrupted . | . . . Combat Hostiles . | . . . Parts Fried . | . . . Impact Corruptions . | . . . Robots Melted . | . . . Combat Hostiles . | . . . Parts Melted 3 | . . 3 Heat Transferred 2257 | . . 2257 Parts Sabotaged . | . . . Parts Stolen . | . . . Parts Stripped . | . . . Power Chain Reactions . | . . . Alert | -11 -10 -9 ------- Run | Yrd Mat Mat Peak Influence 416 | . 362 416 Initial 95 | . . 95 Average 215 | . 169 245 Maximum Alert Level 2 | . 1 2 Low Security (%) 40 | 100 53 31 Level 1 49 | . 46 52 Level 2 10 | . . 15 Level 3 . | . . . Level 4 . | . . . Level 5 . | . . . High Security . | . . . Max Security . | . . . Squads Dispatched 6 | . 2 4 Investigation 2 | . 1 1 Extermination . | . . . Reinforcement 4 | . 1 3 Assault . | . . . Garrison . | . . . Intercept . | . . . Searches Triggered . | . . . Construction Impeded 1 | . . 1 Haulers Reinforced . | . . . Active Scanning Responses . | . . . Cargo Convoy Interrupts . | . . . Stealth | -11 -10 -9 --------- Run | Yrd Mat Mat Distress Signals 7 | . 3 4 Communications Jammed . | . . . Distress Signals . | . . . Times Spotted 69 | . 23 46 Peak Tracking Total 9 | . 8 9 Tactical Retreats 4 | . 2 2 Traps | -11 -10 -9 ------- Run | Yrd Mat Mat Traps Triggered 1 | . . 1 Indirectly . | . . . Trap Hack Attempts . | . . . Triggered . | . . . Disarmed . | . . . Reprogrammed . | . . . Reused . | . . . Traps Extracted . | . . . Installed . | . . . Triggered . | . . . Machines | -11 -10 -9 ---------- Run | Yrd Mat Mat Machines Disabled 3 | . 2 1 Max in Single Turn 1 | . 1 1 Machines Repaired . | . . . Machines Dismantled . | . . . Machines Sabotaged . | . . . Overloaded Fab Kills . | . . . Hacking | -11 -10 -9 --------- Run | Yrd Mat Mat Machines Accessed 10 | . 3 7 Terminals 8 | . 3 5 Fabricators . | . . . Repair Stations . | . . . Recycling Units . | . . . Scanalyzers 2 | . . 2 Garrison Access . | . . . Total Hacks 16 | . 4 12 Successful 11 | . 3 8 Failed 5 | . 1 4 Catastrophic . | . . . Database Lockouts . | . . . Manual 13 | . 4 9 Terminals 13 | . 4 9 Fabricators . | . . . Repair Stations . | . . . Recycling Units . | . . . Scanalyzers 3 | . . 3 Garrison Access . | . . . Terminal Hacks 2 | . . 2 Record 1 | . . 1 Unreport Threat 1 | . . 1 Fabricator Hacks . | . . . Repair Station Hacks . | . . . Recycling Unit Hacks . | . . . Scanalyzer 2 | . . 2 Insert Component 1 | . . 1 Analyze 1 | . . 1 Garrison Access Hacks . | . . . Unauthorized Hacks 7 | . 3 4 Terminals 6 | . 3 3 Assimilate 1 | . 1 . Botnet 4 | . 1 3 Search 1 | . 1 . Fabricators . | . . . Repair Stations . | . . . Recycling Units . | . . . Scanalyzers 1 | . . 1 Researchers 1 | . . 1 Garrison Access . | . . . Data Cores Recovered 1 | . . 1 Used 1 | . . 1 Hacking Detections 3 | . . 3 Full Trace Events . | . . . Feedback Events . | . . . Feedback Blocked . | . . . Robot Schematics Acquired . | . . . Robots Built . | . . . Authchips . | . . . Time . | . . . Total Robot Build Rating . | . . . Part Schematics Acquired 1 | . . 1 Parts Built . | . . . Authchips . | . . . Time . | . . . Total Part Build Rating . | . . . Parts Repaired . | . . . Time . | . . . Parts Recycled . | . . . Recycled Matter . | . . . Retrieved Matter . | . . . Retrieved Components . | . . . Parts Scanalyzed 1 | . . 1 Part Schematics Acquired 1 | . . 1 Parts Damaged . | . . . Bothacking | -11 -10 -9 ------------ Run | Yrd Mat Mat Used RIF Installer . | . . . Robots Hacked . | . . . Non-combat . | . . . Combat . | . . . Robot Hacks Applied . | . . . Relay Couplers Released . | . . . Fabnet Peak Effective % . | . . . Robots Rewired . | . . . Allies Hacked . | . . . Hacks Repelled . | . . . Allies | -11 -10 -9 -------- Run | Yrd Mat Mat Total Allies . | . . . Largest Group . | . . . Highest-Rated Group . | . . . Highest-Rated Ally . | . . . Total Orders . | . . . Ally Attacks . | . . . Total Damage . | . . . Kills . | . . . Allies Corrupted . | . . . Allies Melted . | . . . Intel | -11 -10 -9 ------- Run | Yrd Mat Mat Robot Analysis Total . | . . . Derelict Logs Recovered . | . . . Drone Launches . | . . . Drone Recoveries . | . . . Exploration | -11 -10 -9 ------------- Run | Yrd Mat Mat Turns Passed 2201 | 61 676 1464 Spaces Moved 1273 | 57 487 729 Core 29 | 18 . 11 Treads 848 | 2 182 664 Legs 54 | . . 54 Wheels 342 | 37 305 . Hover . | . . . Flight . | . . . Fastest Speed 50 | 50 80 100 Average Speed 138 | 79 112 160 Slowest Speed 400 | 160 160 400 Overloaded Moves . | . . . Propulsion Burnouts . | . . . Robots Hopped . | . . . Cave-ins Triggered . | . . . Exploration Rate (%) 46 | 3 77 60 Regions Visited 2 Branch Regions . Pre-discovered Areas . | . . . Known Exits Taken . | . . . Unknown Exits Taken 2 | 1 1 . Scrap Searched . | . . . Spaces Dug . | . . . Terrain Destroyed . | . . . Melee . | . . . Projectile . | . . . AOE . | . . . Terrain Rammed . | . . . Walls Destroyed . | . . . Machines Disabled . | . . . Actions | -11 -10 -9 --------- Run | Yrd Mat Mat Total 1491 | 71 559 861 Wait 24 | . 16 8 Move 1271 | 56 486 729 Hop . | . . . Pick Up 25 | 8 10 7 Fast Attach 15 | 3 . 12 Attach 11 | 1 5 5 Detach 1 | . . 1 Swap 15 | 2 5 8 Drop 22 | 1 7 14 Fire 96 | . 30 66 Melee 11 | . . 11 Ram . | . . . Kick . | . . . Crush . | . . . Escape Stasis . | . . . Rewire . | . . . Trap . | . . . Miscellaneous . | . . . Route ------- -11/Scrapyard -10/Materials (discovered 3 exits: *Mat x2 / [*Min]) -9/Materials (discovered 5 exits: [*Mat x3] / [*Min x2]) History --------- Turn | Location | Event 30 | -11/Scrapyard | Discovered new exit (range 15) 62 | -11/Scrapyard | Entered Materials 156 | -10/Materials | Discovered new exit (range 8) 303 | -10/Materials | Build established: Mutant 385 | -10/Materials | Discovered new exit (range 8) 649 | -10/Materials | Discovered new exit (range 9) 738 | -10/Materials | Entered another Materials area 738 | -9/Materials | Evolved 2 slots: Weapon x2 918 | -9/Materials | Discovered new exit (range 13) 1017 | -9/Materials | Discovered new exit (range 16) 1140 | -9/Materials | Build established: Tank 1287 | -9/Materials | Discovered new exit (range 9) 1455 | -9/Materials | Build established: Gunner 1485 | -9/Materials | Discovered new exit (range 13) 2061 | -9/Materials | Core integrity fell below 50% 2116 | -9/Materials | Lost 6 parts (2n2u2w) 2143 | -9/Materials | Discovered new exit (range 16) 2175 | -9/Materials | Core integrity fell below 20% 2202 | -9/Materials | Destroyed by S-10 Pest with Light Assault Rifle Last Messages --------------- 02106_ K-01 Serf collects debris. 02108_ Acquired 44 matter. 02110_ K-01 Serf collects debris. 02112_ Acquired Ion Engine. 02114_ K-01 Serf collects debris. 02115_ Acquired 98 matter. 02117_ K-01 Serf collects debris. 02118_ Acquired 1 matter. 02120_ K-01 Serf collects debris. 02125_ R-06 Scavenger collects Wheel. 02126_ K-01 Serf cleans the Terminal. 02126_ K-01 Serf collects debris. 02133_ K-01 Serf cleans the Terminal. 02136_ K-01 Serf collects debris. 02143_ EXIT=FOUND 02158_ W-16 Scout sends out distress signal. 02167_ Imp. Ion Engine destroyed. 02170_ Destroyed Flight Unit. 02176_ Critical hit (Destroy). 02176_ Katana destroyed. Map ----- +----------------------------------------------------+ | ???????????????????????????????? | | ???????????????????????????????? | | ???????????????????????????????? | | ???????????????????????????????? | | ???????????????????????????????? | | ??????????????????????????? ???? | | ??????????????????????????? ? | | ?????????????????????????# ### | | ?????????????????????????## ### | | ?????????????????????????## ###" | | ?????????????????????????## ###" | | ?????????????????????????## ###" | | ?????????????????????????## ### | | ?????????????????????????## #### | | ?????????????????????????## ^ | | ?????? # #### ^ % | | ??????#####+######+######## ^ | | ??????## ^ | | ??????## < | | ??????## ?? | | ################### | | ################### | | ##[[!!==# # """ """ | | ## [!!==# # """ """ | | ????? # """ # """ """ | | ?????##@# """ + | | ?????## # """ !! # | | ?????## # ! # ########## | | ?????## # # ########## | | ?????## # # ##???????? | | ?????## ########### ##???????? | | ?????##s#### !% ######???? | | ?????##ss ! ######???? | | ?????####### ? | | ?????######## ##########?? | | ??????????### ## ?? | | ??????????? # ##?????????? | | ??????????? # ##?????????? | | ??????????? # """ ##?????????? | | ??????????? # """ ##?????????? | | ??????????? # """ ?????????? | | ??????????? # ??????? | | ??????????? + #####??????? | | ??????????? # """ ## ??????? | | ???????????## """ ##?????????? | | ???????????# ""? ##?????????? | | ???????????? ?? #?????????? | | ???????????? ???????????????? | | ???????????? #??????????????? | | ???????????? ##??????????????? | +----------------------------------------------------+ Best States ------------- Heat Dissipation 42 Energy Generation 12 Energy Capacity 265 Matter Stores 300 Matter Capacity 300 Sight Range 16 Terrain Scan Density 10 Armor Coverage 150 Evasion (%) 55 Recoil Reduction 2 Item Schematics ----------------- Imp. Flight Unit | -9/Materials | Scanalyzed Robot Schematics ------------------ None Fabricated ------------ Nothing Alien Tech Used ----------------- None Achievements -------------- Quantum Hacking Challenges ------------ None Game ------ Seed GammaAccelerationObliterator Manual? 0 Play Time 00:24:45 Cumulative 155.3 hours Start 2024.09.06 @ 16:29:51 End 2024.09.06 @ 16:54:17 Sessions 1 Manual Loads 0 Difficulty Rogue Special Mode None Game No. 217 Rogue 217 Adventurer 0 Explorer 0 Win Type - Total 0 Types 0/0/0/0/0/0/0/0/0 Lore% 32 Gallery% 60 Achievement% 41 Wizard Run 0 Options --------- Layout 0 ASCII 0 Keyboard 0 Movement Mouse Keybinds 0 Fullscreen 1 Font 24/Smallcaps Map View 76x50 Zoom Use 0% Tactical HUD 1 Map Filters NONE Filters NONE Steam 1 RUN: 2a4853ac-ef93-4102-ae09-ee055fd786e6